bitfinex-derivatives/quotes_BTCF0:USTF0_20260207
["timestamp","ask_amount","ask_price","bid_price","bid_amount"]
[1770425519879,0.58097722,70339.0,70279.0,0.1393652]
[1770425520177,0.58097722,70339.0,70300.0,0.1535992]
[1770425520572,0.58097722,70339.0,70300.0,0.1393652]
[1770425520877,0.001,70349.0,70306.0,0.1391652]
[1770425521073,0.58197722,70349.0,70313.0,0.1533962]
[1770425521474,0.58197722,70349.0,70317.0,0.18573413]
[1770425521676,0.58197722,70349.0,70320.0,0.17150413]
[1770425521879,0.58197722,70349.0,70309.0,0.17150413]
[1770425521880,0.58097722,70349.0,70309.0,0.17150413]
[1770425522077,0.58097722,70369.0,70322.0,0.17150413]
[1770425522377,0.58097722,70369.0,70325.0,0.18573313]
[1770425522683,0.58097722,70369.0,70331.0,0.014228]
[1770425522980,0.58097722,70369.0,70330.0,0.17150413]
[1770425523279,0.58097722,70369.0,70342.0,0.014225]
[1770425523481,0.58097722,70385.0,70346.0,0.1654816]
[1770425524277,0.58097722,70385.0,70353.0,0.1654816]
[1770425524469,0.58097722,70409.0,70357.0,0.1654816]
[1770425524776,0.06284,70430.0,70343.0,0.1654816]
[1770425524777,0.58097722,70389.0,70343.0,0.1654816]
[1770425524973,0.58097722,70389.0,70348.0,0.1654816]
[1770425526275,0.58097722,70389.0,70353.0,0.18698069]
[1770425527169,0.58097722,70389.0,70354.0,0.014223]
[1770425527678,0.58097722,70389.0,70353.0,0.18698069]
[1770425528378,0.58097722,70389.0,70345.0,0.16566201]
[1770425528676,0.58097722,70389.0,70342.0,0.18771963]
[1770425528884,0.58097722,70389.0,70342.0,0.17349463]
[1770425529072,0.58097722,70389.0,70343.0,0.21358257]
[1770425529276,0.58097722,70389.0,70342.0,0.17349463]
[1770425529277,0.52691312,70379.0,70334.0,0.16566201]
[1770425529480,0.52686312,70379.0,70335.0,0.21361034]
[1770425529774,0.52686312,70379.0,70336.0,0.21361034]
[1770425529977,0.52686312,70379.0,70331.0,0.33915664]
[1770425530178,0.52686312,70379.0,70333.0,0.16566201]
[1770425530376,0.52686312,70379.0,70334.0,0.2136176]
[1770425530576,0.52686312,70379.0,70335.0,0.2136176]
[1770425530783,0.52686312,70379.0,70336.0,0.2136176]
[1770425531076,0.52686312,70379.0,70335.0,0.16566201]
[1770425531284,0.52686312,70379.0,70332.0,0.16566201]
[1770425531581,0.52686312,70379.0,70333.0,0.21362637]
[1770425531784,0.52686312,70379.0,70330.0,0.16566201]
[1770425531974,0.52686312,70379.0,70327.0,0.20707302]
[1770425531975,0.52686312,70379.0,70331.0,0.213639]
[1770425532279,0.52686312,70379.0,70325.0,0.17989101]
[1770425532485,0.52686312,70379.0,70326.0,0.3778925]
[1770425532678,0.52686312,70379.0,70327.0,0.21364642]
[1770425532873,0.52686312,70379.0,70323.0,0.16566201]
[1770425533078,0.00028,70395.0,70316.0,0.16424608]
[1770425533079,0.52858463,70359.0,70324.0,0.21365568]
[1770425533381,0.52858463,70359.0,70311.0,0.16566201]
[1770425533677,0.52858463,70359.0,70303.0,0.16566201]
[1770425533882,0.54258574,70339.0,70297.0,0.16566201]
[1770425534084,0.54258574,70339.0,70299.0,0.16566201]
[1770425534285,0.54258574,70339.0,70300.0,0.21374018]
[1770425534482,0.54258574,70339.0,70279.0,0.54972435]
[1770425534787,0.54258574,70339.0,70274.0,0.27553363]
[1770425534976,0.54258574,70339.0,70268.0,0.62923129]
[1770425535180,0.54258574,70339.0,70276.0,0.014239]
[1770425535377,0.54258574,70339.0,70281.0,0.36367668]
[1770425536283,0.54358574,70339.0,70281.0,0.36367668]
[1770425536783,0.0628,70360.0,70281.0,0.36367668]
[1770425536784,0.52691312,70319.0,70281.0,0.36367668]
[1770425536986,0.52691312,70319.0,70270.0,0.54972435]
[1770425538183,0.52691312,70330.0,70299.0,0.50106073]
[1770425538376,0.52691312,70330.0,70301.0,0.50106073]
[1770425538582,0.52691312,70330.0,70301.0,0.61385736]
[1770425538881,0.52691312,70330.0,70298.0,0.11279663]
[1770425539287,0.52691312,70330.0,70297.0,0.11279663]
[1770425539679,0.52691312,70330.0,70298.0,0.11279663]
[1770425539879,0.52691312,70330.0,70288.0,0.014236]
[1770425539880,0.52691312,70330.0,70292.0,0.11279663]
[1770425540079,0.52691312,70330.0,70291.0,0.11279663]
[1770425540387,0.52691312,70329.0,70285.0,0.11279663]
[1770425540687,0.52691312,70329.0,70279.0,0.11279663]
[1770425541180,0.52691312,70329.0,70276.0,0.11279663]
[1770425541372,0.52691312,70329.0,70273.0,0.014239]
[1770425541579,0.52691312,70329.0,70278.0,0.6457243]
[1770425541778,0.52691312,70329.0,70292.0,0.53292767]
[1770425541974,0.52691312,70329.0,70294.0,0.6457243]
[1770425542188,0.52691312,70329.0,70295.0,0.11279663]
[1770425542375,0.52691312,70329.0,70294.0,0.11279663]
[1770425542574,0.52791312,70329.0,70294.0,0.11279663]
[1770425543181,0.52691312,70329.0,70295.0,0.6457243]
[1770425543487,0.52791312,70329.0,70299.0,0.11279663]
[1770425543690,0.52791312,70329.0,70300.0,0.11279663]
[1770425544085,0.52691312,70329.0,70300.0,0.11279663]
[1770425544384,0.52791312,70329.0,70297.0,0.53292767]
[1770425544588,0.52791312,70329.0,70304.0,0.11270368]
[1770425544789,0.52791312,70329.0,70303.0,0.11270368]
[1770425544984,0.52791312,70329.0,70304.0,0.11270368]
[1770425545194,0.52791312,70329.0,70299.0,0.11270368]
[1770425545588,0.52691312,70329.0,70298.0,0.11270368]
[1770425545788,0.52691312,70329.0,70297.0,0.11270368]
[1770425546091,0.52691312,70329.0,70288.0,0.11270368]
[1770425546487,0.52691312,70329.0,70289.0,0.32646848]
[1770425546685,0.52691312,70329.0,70276.0,0.50855629]
[1770425546686,0.52691312,70329.0,70286.0,0.11270368]
[1770425546891,0.52691312,70329.0,70287.0,0.32647504]
[1770425547092,0.52691312,70329.0,70287.0,0.11270368]
[1770425547591,0.52691312,70329.0,70285.0,0.11270368]
[1770425547785,0.52691312,70329.0,70284.0,0.11270368]
[1770425548096,0.52691312,70329.0,70283.0,0.11270368]
[1770425548288,0.52691312,70329.0,70286.0,0.55031093]
[1770425548489,0.52691312,70329.0,70289.0,0.014236]
[1770425548691,0.52691312,70329.0,70292.0,0.014236]
[1770425548890,0.52691312,70329.0,70293.0,0.86252236]
[1770425549086,0.52691312,70329.0,70299.0,0.12693768]
[1770425549486,0.52691312,70359.0,70303.0,0.55887653]
[1770425549687,0.001,70329.0,70303.0,0.55887653]
[1770425549981,0.52791312,70329.0,70299.0,0.11270368]
[1770425550392,0.52691312,70329.0,70304.0,0.36367668]
[1770425551487,0.52691312,70329.0,70299.0,0.11270368]
[1770425551695,0.52691312,70329.0,70299.0,0.66354587]
[1770425551987,0.52691312,70359.0,70306.0,0.014233]
[1770425552186,0.52691312,70359.0,70308.0,0.56507419]
[1770425552394,0.52691312,70359.0,70310.0,0.55084219]
[1770425553091,0.52691312,70359.0,70320.0,0.56507219]
[1770425553693,0.52791312,70359.0,70331.0,0.56140176]
[1770425554197,0.001,70359.0,70339.0,0.014226]
[1770425554392,0.001,70359.0,70340.0,0.54717376]
[1770425554587,0.001,70359.0,70342.0,0.54717376]
[1770425554892,0.00028,70372.0,70342.0,0.54717376]
[1770425555292,0.52691312,70381.0,70342.0,0.65987744]
[1770425555494,0.52691312,70381.0,70344.0,0.57415027]
[1770425555800,0.52691312,70381.0,70337.0,0.21094773]
[1770425555801,0.52691312,70381.0,70347.0,0.53253521]
[1770425556093,0.52867211,70392.0,70347.0,0.53253521]
[1770425556686,0.52867211,70392.0,70328.0,0.27553363]
[1770425556687,0.52867211,70392.0,70351.0,0.53253521]
[1770425556882,0.52867211,70392.0,70342.0,0.014225]
[1770425557083,0.52867211,70392.0,70354.0,0.53253521]
[1770425557484,0.52867211,70392.0,70360.0,0.014222]
[1770425557689,0.52867211,70392.0,70360.0,0.54675721]
[1770425558292,0.52867211,70392.0,70360.0,0.53253521]
[1770425558885,0.52867211,70392.0,70350.0,0.54675921]
[1770425559290,0.52867211,70392.0,70350.0,0.53253521]
[1770425559696,0.52867211,70392.0,70345.0,0.11270368]
[1770425559896,0.52867211,70392.0,70341.0,0.11270368]
[1770425560100,0.52867211,70392.0,70338.0,0.53253521]
[1770425562000,0.52867211,70392.0,70339.0,0.014226]
[1770425562202,0.52967211,70392.0,70339.0,0.014226]
[1770425562390,0.42299883,70387.0,70339.0,0.54676121]
[1770425562702,0.52867211,70386.0,70339.0,0.54676121]
[1770425563394,0.52867211,70386.0,70339.0,0.53253521]
[1770425563795,0.52867211,70386.0,70332.0,0.014227]
[1770425564194,0.52867211,70383.0,70329.0,0.54676321]
[1770425564592,0.52867211,70383.0,70332.0,0.014227]
[1770425564901,0.52867211,70383.0,70340.0,0.53253521]
[1770425565098,0.52867211,70383.0,70342.0,0.53253521]
[1770425565300,0.001,70386.0,70351.0,0.53253521]
[1770425565601,0.001,70386.0,70349.0,0.36367668]
[1770425565602,0.52895211,70400.0,70363.0,0.54675621]
[1770425565802,0.52867211,70400.0,70363.0,0.53253521]
[1770425566100,0.001,70383.0,70363.0,0.53253521]
[1770425566596,0.001,70383.0,70354.0,0.014223]
[1770425566901,0.001,70383.0,70353.0,0.014223]
[1770425567105,0.001,70383.0,70352.0,0.53253521]
[1770425567106,0.001,70383.0,70362.0,0.014221]
[1770425567297,0.001,70383.0,70358.0,0.014222]
[1770425567603,0.52867211,70391.0,70358.0,0.014222]
[1770425567794,0.52867211,70391.0,70355.0,0.53253521]
[1770425568001,0.52867211,70391.0,70359.0,0.014222]
[1770425568199,0.52867211,70391.0,70360.0,0.014222]
[1770425568689,0.52867211,70391.0,70355.0,0.53253521]
[1770425569092,0.52867211,70391.0,70360.0,0.014222]
[1770425569701,0.52867211,70391.0,70362.0,0.54675621]
[1770425570004,0.52867211,70428.0,70380.0,0.53253521]
[1770425570194,0.52567211,70428.0,70380.0,0.53253521]
[1770425570396,0.52567211,70428.0,70396.0,0.53253521]
[1770425570593,0.52567211,70428.0,70403.0,0.014213]
[1770425570803,0.52567211,70428.0,70385.0,0.014217]
[1770425570804,0.52867211,70450.0,70401.0,0.53253521]
[1770425570998,0.52867211,70450.0,70385.0,0.014217]
[1770425570999,0.52867211,70450.0,70404.0,0.53253521]
[1770425571197,0.52867211,70450.0,70406.0,0.53253521]
[1770425571401,0.001,70428.0,70409.0,0.014212]
[1770425571598,0.001,70428.0,70409.0,0.53253521]
[1770425571795,0.001,70428.0,70398.0,0.53253521]
[1770425572212,0.52867211,70429.0,70398.0,0.53253521]
[1770425573506,0.52867211,70429.0,70400.0,0.54674921]
[1770425573713,0.52867211,70449.0,70406.0,0.014212]
[1770425574010,0.52867211,70449.0,70406.0,0.53253521]
[1770425574210,0.52867211,70449.0,70395.0,0.53253521]
[1770425575011,0.52867211,70449.0,70384.0,0.53253521]
[1770425575205,0.52867211,70449.0,70388.0,0.53253521]
[1770425575404,0.52867211,70449.0,70390.0,0.53253521]
[1770425575798,0.52867211,70449.0,70378.0,0.53253521]
[1770425576401,0.14142194,70440.0,70378.0,0.53253521]
[1770425576603,0.52867211,70439.0,70378.0,0.53253521]
[1770425577211,0.52867211,70439.0,70370.0,0.01422]
[1770425577410,0.52867211,70439.0,70368.0,0.53253521]
[1770425577610,0.52867211,70439.0,70372.0,0.014219]
[1770425578506,0.52867211,70439.0,70369.0,0.51976272]
[1770425578707,0.52967211,70439.0,70369.0,0.51976272]
[1770425579111,0.52867211,70430.0,70369.0,0.51976272]
[1770425581719,0.52967211,70430.0,70369.0,0.51976272]
[1770425582914,0.52867211,70419.0,70378.0,0.36367668]
[1770425583114,0.52867211,70419.0,70360.0,0.52668156]
[1770425583508,0.52867211,70419.0,70370.0,0.49381445]
[1770425583810,0.52867211,70417.0,70377.0,0.49381445]
[1770425584611,0.001,70419.0,70377.0,0.49381445]
[1770425584804,0.001,70419.0,70393.0,0.49381445]
[1770425585114,0.001,70419.0,70395.0,0.014215]
[1770425585325,0.001,70419.0,70396.0,0.49381445]
[1770425586718,0.58179097,70440.0,70396.0,0.49381445]
[1770425587019,0.58179097,70440.0,70400.0,0.55050502]
[1770425587918,0.72321291,70440.0,70380.0,0.55722434]
[1770425589617,0.52858065,70437.0,70380.0,0.55722434]
[1770425590418,0.52858065,70419.0,70369.0,0.55722434]
[1770425591221,0.52858065,70419.0,70353.0,0.2108803]
[1770425591222,0.52858065,70419.0,70359.0,0.55722434]
[1770425591515,0.52858065,70399.0,70349.0,0.66933306]
[1770425591812,0.52858065,70399.0,70349.0,0.55722434]
[1770425592409,0.52886065,70399.0,70349.0,0.55722434]
[1770425593006,0.52886065,70399.0,70335.0,0.55722434]
[1770425593211,0.52858065,70397.0,70335.0,0.55722434]
[1770425593617,0.52858065,70379.0,70323.0,0.53622725]
[1770425595415,0.52958065,70379.0,70323.0,0.53622725]
[1770425595721,0.52858065,70359.0,70323.0,0.53622725]
[1770425596314,0.52858065,70359.0,70310.0,0.54567295]
[1770425596624,0.52858065,70339.0,70299.0,0.54567295]
[1770425598519,0.52858065,70339.0,70289.0,0.54188217]
[1770425599317,0.06276,70366.0,70289.0,0.54188217]
[1770425599318,0.52858065,70319.0,70289.0,0.54188217]
[1770425599825,0.42069443,70368.0,70298.0,0.49196839]
[1770425599826,0.52858065,70341.0,70298.0,0.49196839]
[1770425600121,0.52858065,70341.0,70281.0,0.49196839]
[1770425600315,0.52858065,70341.0,70283.0,0.49196839]
[1770425600516,0.52858065,70329.0,70283.0,0.49196839]
[1770425605323,0.52858065,70319.0,70283.0,0.49196839]
[1770425606814,0.56185579,70381.0,70287.0,0.54569034]
[1770425606815,0.52858065,70329.0,70287.0,0.54569034]
[1770425607124,0.52858065,70339.0,70303.0,0.54569034]
[1770425610024,0.52858065,70359.0,70311.0,0.55722434]
[1770425610228,0.52858065,70359.0,70313.0,0.55722434]
[1770425610422,0.52858065,70359.0,70315.0,0.55722434]
[1770425610828,0.52858065,70359.0,70304.0,0.55722434]
[1770425611515,0.52858065,70359.0,70282.0,0.014238]
[1770425611516,0.52858065,70359.0,70309.0,0.014232]
[1770425611734,0.52858065,70359.0,70310.0,0.55722434]
[1770425613323,0.52958065,70359.0,70310.0,0.55722434]
[1770425614020,0.52858065,70359.0,70310.0,0.55722434]
[1770425614225,0.52958065,70359.0,70310.0,0.55722434]
[1770425614418,0.52958065,70359.0,70322.0,0.36367668]
[1770425614619,0.52958065,70359.0,70310.0,0.55722434]
[1770425615023,0.52958065,70359.0,70310.0,0.55703257]
[1770425615630,0.53058065,70359.0,70310.0,0.55703257]
[1770425616330,0.52858065,70359.0,70310.0,0.55703257]
[1770425616530,0.52958065,70359.0,70310.0,0.55703257]
[1770425617228,0.52858065,70359.0,70310.0,0.55703257]
[1770425617529,0.52958065,70359.0,70310.0,0.55703257]
[1770425618728,0.52858065,70359.0,70310.0,0.55703257]
[1770425618926,0.53058065,70359.0,70310.0,0.55703257]
[1770425619325,0.002,70359.0,70318.0,0.52614223]
[1770425619533,0.55340995,70369.0,70320.0,0.52614223]
[1770425619726,0.55312995,70369.0,70320.0,0.52614223]
[1770425620529,0.55312995,70358.0,70320.0,0.52614223]
[1770425621626,0.55312995,70358.0,70310.0,0.52614223]
[1770425622435,0.55312995,70358.0,70293.0,0.52614223]
[1770425622931,0.55412995,70358.0,70293.0,0.52614223]
[1770425623128,0.55412995,70358.0,70281.0,0.20994095]
[1770425623129,0.55312995,70319.0,70282.0,0.52614223]
[1770425623826,0.0014,70283.0,70282.0,0.52614223]
[1770425624022,0.55312995,70319.0,70282.0,0.52614223]
[1770425625732,0.00028,70333.0,70282.0,0.52614223]
[1770425625934,0.55312995,70329.0,70284.0,0.52614223]
[1770425626330,0.55312995,70329.0,70286.0,0.52614223]
[1770425626836,0.00028,70333.0,70294.0,0.52614223]
[1770425627130,0.55312995,70319.0,70284.0,0.52614223]
[1770425628435,0.55312995,70319.0,70272.0,0.52614223]
[1770425630241,0.55312995,70299.0,70261.0,0.52614223]
[1770425631033,0.55312995,70279.0,70233.0,0.11210872]
[1770425631239,0.55312995,70279.0,70234.0,0.52614223]
[1770425632437,0.55312995,70259.0,70225.0,0.52614223]
[1770425633632,0.55312995,70272.0,70225.0,0.52614223]
[1770425634138,0.55312995,70279.0,70225.0,0.52614223]
[1770425634439,0.55312995,70279.0,70227.0,0.52614223]
[1770425635033,0.55312995,70279.0,70213.0,0.21229778]
[1770425635034,0.55312995,70296.0,70237.0,0.52614223]
[1770425635232,0.55312995,70296.0,70245.0,0.52614223]
[1770425637540,0.55312995,70296.0,70247.0,0.52614223]
[1770425637841,0.55312995,70296.0,70249.0,0.52614223]
[1770425638034,0.55312995,70296.0,70251.0,0.52614223]
[1770425638235,0.55312995,70296.0,70253.0,0.52614223]
[1770425638442,0.55412995,70296.0,70253.0,0.52614223]
[1770425639039,0.55312995,70296.0,70253.0,0.52614223]
[1770425639342,0.55312995,70296.0,70235.0,0.52614223]
[1770425639839,0.55312995,70279.0,70235.0,0.52614223]
[1770425641439,0.55312995,70296.0,70235.0,0.52614223]
[1770425641640,0.55312995,70296.0,70240.0,0.52614223]
[1770425642043,0.55312995,70296.0,70248.0,0.52614223]
[1770425642239,0.55312995,70296.0,70250.0,0.52614223]
[1770425642542,0.55312995,70296.0,70254.0,0.52614223]
[1770425643231,0.55312995,70296.0,70256.0,0.52614223]
[1770425644242,0.00028,70297.0,70263.0,0.014241]
[1770425644439,0.00028,70297.0,70264.0,0.52614223]
[1770425644638,0.00028,70297.0,70265.0,0.014241]
[1770425644844,0.00028,70297.0,70266.0,0.52614223]
[1770425645442,0.55312995,70334.0,70266.0,0.52614223]
[1770425645642,0.5477648,70329.0,70285.0,0.54924359]
[1770425647545,0.5477648,70329.0,70291.0,0.54924359]
[1770425647938,0.5487648,70329.0,70291.0,0.54924359]
[1770425648649,0.5477648,70329.0,70291.0,0.54924359]
[1770425651944,0.5477648,70329.0,70271.0,0.21229778]
[1770425651945,0.5477648,70329.0,70294.0,0.57916341]
[1770425653455,0.5477648,70329.0,70283.0,0.57916341]
[1770425654456,0.5487648,70329.0,70283.0,0.57916341]
[1770425654658,0.5487648,70329.0,70285.0,0.57916341]
[1770425655249,0.5477648,70329.0,70289.0,0.014236]
[1770425655650,0.5477648,70329.0,70287.0,0.57916341]
[1770425656253,0.5477648,70329.0,70288.0,0.59339941]
[1770425656553,0.5477648,70329.0,70288.0,0.57916341]
[1770425656769,0.5477648,70329.0,70277.0,0.57916341]
[1770425657254,0.5477648,70329.0,70290.0,0.57916341]
[1770425658458,0.5487648,70329.0,70290.0,0.57916341]
[1770425658858,0.5487648,70329.0,70292.0,0.57916341]
[1770425660660,0.5477648,70329.0,70292.0,0.57916341]
[1770425661651,0.5477648,70329.0,70278.0,0.57916341]
[1770425662260,0.56092846,70326.0,70278.0,0.57916341]
[1770425664277,0.56192846,70326.0,70282.0,0.57916341]
[1770425665364,0.56192846,70326.0,70286.0,0.57916341]
[1770425666260,0.56092846,70326.0,70286.0,0.57916341]
[1770425667162,0.56092846,70326.0,70289.0,0.57916341]
[1770425667361,0.56092846,70326.0,70296.0,0.57916341]
[1770425667563,0.56092846,70348.0,70296.0,0.57916341]
[1770425667863,0.56092846,70348.0,70298.0,0.57916341]
[1770425668762,0.56092846,70348.0,70287.0,0.57916341]
[1770425669767,0.56092846,70348.0,70289.0,0.57916341]
[1770425669966,0.56092846,70348.0,70291.0,0.57916341]
[1770425670361,0.56192846,70348.0,70291.0,0.57916341]
[1770425670971,0.56092846,70348.0,70291.0,0.57916341]
[1770425671270,0.56192846,70348.0,70291.0,0.57916341]
[1770425671663,0.56192846,70348.0,70281.0,0.16928831]
[1770425671664,0.56192846,70348.0,70295.0,0.57916341]
[1770425671863,0.56192846,70348.0,70297.0,0.57916341]
[1770425672267,0.56092846,70347.0,70297.0,0.57916341]
[1770425672670,0.56092846,70341.0,70297.0,0.57916341]
[1770425672972,0.56092846,70340.0,70297.0,0.57916341]
[1770425674768,0.42069443,70339.0,70297.0,0.57916341]
[1770425675073,0.56092846,70338.0,70297.0,0.57916341]
[1770425675465,0.56092846,70337.0,70297.0,0.57916341]
[1770425675667,0.56092846,70337.0,70288.0,0.5283518]
[1770425675868,0.55672864,70334.0,70288.0,0.5283518]
[1770425676167,0.42069443,70333.0,70288.0,0.5283518]
[1770425676369,0.55672864,70332.0,70276.0,0.5283518]
[1770425676764,0.55672864,70332.0,70288.0,0.5283518]
[1770425677371,0.55672864,70332.0,70295.0,0.5283518]
[1770425678874,0.55772864,70332.0,70295.0,0.5283518]
[1770425679469,0.55672864,70332.0,70295.0,0.5283518]
[1770425682876,0.55672864,70332.0,70281.0,0.5283518]
[1770425683280,0.55672864,70332.0,70283.0,0.5283518]
[1770425683577,0.55672864,70332.0,70285.0,0.5283518]
[1770425684076,0.55672864,70332.0,70285.0,0.5425888]
[1770425684279,0.55772864,70332.0,70285.0,0.5425888]
[1770425684782,0.55672864,70319.0,70276.0,0.16928831]
[1770425685081,0.55672864,70319.0,70272.0,0.21229778]
[1770425685082,0.55672864,70319.0,70267.0,0.5283518]
[1770425686375,0.55772864,70319.0,70267.0,0.5283518]
[1770425687081,0.55672864,70317.0,70267.0,0.5283518]
[1770425687380,0.55672864,70314.0,70267.0,0.5283518]
[1770425689576,0.55672864,70314.0,70258.0,0.5283518]
[1770425689883,0.55672864,70313.0,70258.0,0.5283518]
[1770425690575,0.55672864,70310.0,70258.0,0.5283518]
[1770425690978,0.14191756,70300.0,70258.0,0.5283518]
[1770425691174,0.14191756,70300.0,70236.0,0.5283518]
[1770425691175,0.55672864,70299.0,70236.0,0.5283518]
[1770425691577,0.55672864,70299.0,70246.0,0.5283518]
[1770425692679,0.42069443,70301.0,70246.0,0.5283518]
[1770425692680,0.55672864,70289.0,70246.0,0.5283518]
[1770425695284,0.55772864,70289.0,70246.0,0.5283518]
[1770425695877,0.55772864,70289.0,70213.0,0.16928831]
[1770425695878,0.55672864,70289.0,70226.0,0.5283518]
[1770425696077,0.55772864,70289.0,70226.0,0.5283518]
[1770425696279,0.55672864,70287.0,70226.0,0.5283518]
[1770425697088,0.55672864,70285.0,70234.0,0.5283518]
[1770425697778,0.55672864,70285.0,70235.0,0.014248]
[1770425697973,0.55672864,70285.0,70219.0,0.014252]
[1770425697974,0.55672864,70285.0,70236.0,0.5283518]
[1770425698176,0.55672864,70285.0,70241.0,0.5283518]
[1770425699882,0.55672864,70285.0,70243.0,0.5283518]
[1770425700081,0.55672864,70285.0,70245.0,0.5283518]
[1770425701690,0.55672864,70285.0,70237.0,0.5283518]
[1770425702193,0.55772864,70285.0,70237.0,0.5283518]
[1770425702684,0.42069443,70283.0,70237.0,0.5283518]
[1770425702885,0.55672864,70282.0,70237.0,0.5283518]
[1770425703394,0.42069443,70284.0,70249.0,0.5283518]
[1770425703591,0.001,70285.0,70249.0,0.5283518]
[1770425703989,0.55672864,70284.0,70249.0,0.5283518]
[1770425705091,0.001,70283.0,70249.0,0.5283518]
[1770425705892,0.55672864,70284.0,70249.0,0.5283518]
[1770425709591,0.56676817,70281.0,70249.0,0.5283518]
[1770425710093,0.56676817,70280.0,70249.0,0.5283518]
[1770425710295,0.9874626,70280.0,70249.0,0.5283518]
[1770425710595,0.9874626,70280.0,70216.0,0.014252]
[1770425710596,0.56676817,70279.0,70235.0,0.52607998]
[1770425710890,0.56676817,70276.0,70235.0,0.52607998]
[1770425711094,0.56676817,70285.0,70240.0,0.52607998]
[1770425711489,0.56676817,70284.0,70242.0,0.52607998]
[1770425712394,0.56676817,70279.0,70242.0,0.52607998]
[1770425714387,0.42069443,70277.0,70242.0,0.52607998]
[1770425714587,0.56676817,70276.0,70242.0,0.52607998]
[1770425714786,0.56676817,70275.0,70242.0,0.52607998]
[1770425715192,0.56676817,70273.0,70224.0,0.52607998]
[1770425715593,0.42069443,70272.0,70224.0,0.52607998]
[1770425715795,0.56676817,70271.0,70224.0,0.52607998]
[1770425716498,0.56676817,70270.0,70224.0,0.52607998]
[1770425717200,0.56676817,70270.0,70230.0,0.52607998]
[1770425717399,0.56676817,70270.0,70232.0,0.52607998]
[1770425718101,0.42069443,70275.0,70234.0,0.52607998]
[1770425718402,0.005,70268.0,70241.0,0.52607998]
[1770425718602,0.005,70264.0,70241.0,0.52607998]
[1770425721597,0.56676817,70263.0,70232.0,0.52607998]
[1770425721795,0.005,70256.0,70232.0,0.52607998]
[1770425721994,0.57176817,70256.0,70232.0,0.52607998]
[1770425722302,0.005,70244.0,70232.0,0.52607998]
[1770425722693,0.005,70249.0,70232.0,0.52607998]
[1770425723092,0.56676817,70262.0,70232.0,0.52607998]
[1770425723495,0.0031,70242.0,70232.0,0.52607998]
[1770425724094,0.0031,70251.0,70232.0,0.52607998]
[1770425724495,0.0031,70242.0,70232.0,0.52607998]
[1770425725192,0.0031,70249.0,70232.0,0.52607998]
[1770425725598,0.42069443,70267.0,70232.0,0.52607998]
[1770425726095,0.56676817,70269.0,70232.0,0.52607998]
[1770425727401,0.56676817,70269.0,70232.0,0.52707998]
[1770425728300,0.56676817,70269.0,70232.0,0.52607998]
[1770425729906,0.42069443,70273.0,70232.0,0.52607998]
[1770425730300,0.56676817,70278.0,70238.0,0.52607998]
[1770425731404,0.56776817,70278.0,70238.0,0.52607998]
[1770425732212,0.56676817,70278.0,70238.0,0.52607998]
[1770425732617,0.14215916,70270.0,70238.0,0.52607998]
[1770425732817,0.56676817,70269.0,70238.0,0.52607998]
[1770425739609,0.56676817,70269.0,70238.0,0.54032798]
[1770425739813,0.56807815,70279.0,70238.0,0.54032798]
[1770425740107,0.56807815,70279.0,70238.0,0.6540186]
[1770425740917,0.56807815,70279.0,70244.0,0.55061653]
[1770425743318,0.56807815,70279.0,70244.0,0.32756889]
[1770425743624,0.56807815,70278.0,70244.0,0.32756889]
[1770425744528,0.1302,70245.0,70244.0,0.32756889]
[1770425744715,0.56807815,70268.0,70244.0,0.14823954]
[1770425744918,0.123,70245.0,70244.0,0.14823954]
[1770425745319,0.56807815,70268.0,70244.0,0.14823954]
[1770425746517,0.56807815,70268.0,70224.0,0.55061653]
[1770425746721,0.56807815,70268.0,70244.0,0.001]
[1770425746924,0.56807815,70276.0,70244.0,0.55161653]
[1770425747122,0.56807815,70276.0,70216.0,0.16928831]
[1770425747321,0.56807815,70239.0,70196.0,0.08777351]
[1770425747528,0.42069443,70257.0,70207.0,0.08777351]
[1770425747728,0.56807815,70246.0,70207.0,0.08777351]
[1770425747930,0.56807815,70246.0,70212.0,0.06917351]
[1770425748226,0.14215916,70260.0,70212.0,0.06917351]
[1770425748227,0.56807815,70259.0,70212.0,0.06917351]
[1770425750127,0.001,70246.0,70212.0,0.06917351]
[1770425750724,0.56807815,70259.0,70212.0,0.06917351]
[1770425751436,0.56807815,70259.0,70217.0,0.09331281]
[1770425752437,0.56807815,70259.0,70218.0,0.30731168]
[1770425752638,0.56807815,70259.0,70218.0,0.09331281]
[1770425754332,0.56807815,70259.0,70220.0,0.1212987]
[1770425754534,0.56807815,70259.0,70222.0,0.09965268]
[1770425756738,0.56807815,70259.0,70225.0,0.10581567]
[1770425757041,0.56807815,70259.0,70227.0,0.10581567]
[1770425757433,0.56807815,70259.0,70229.0,0.10581567]
[1770425760436,0.56807815,70243.0,70213.0,0.10855462]
[1770425761139,0.56807815,70243.0,70205.0,0.10855462]
[1770425762239,0.56807815,70239.0,70191.0,0.10855462]
[1770425762644,0.56807815,70219.0,70173.0,0.11393921]
[1770425762838,0.56807815,70219.0,70173.0,0.12820021]
[1770425763045,0.56807815,70219.0,70173.0,0.11393921]
[1770425765643,0.56807815,70219.0,70164.0,0.10621578]
[1770425766544,0.56807815,70219.0,70166.0,0.10672647]
[1770425766737,0.56807815,70219.0,70177.0,0.10672647]
[1770425766939,0.56807815,70219.0,70180.0,0.10672647]
[1770425767142,0.56807815,70219.0,70182.0,0.10672647]
[1770425767745,0.56807815,70219.0,70184.0,0.10672647]
[1770425768533,0.56807815,70219.0,70186.0,0.12278162]
[1770425772043,0.56807815,70219.0,70172.0,0.12266585]
[1770425773144,0.56807815,70219.0,70179.0,0.12014725]
[1770425776345,0.56807815,70219.0,70183.0,0.014259]
[1770425776546,0.56807815,70219.0,70184.0,0.00211724]
[1770425777142,0.56807815,70219.0,70167.0,0.00211724]
[1770425779542,0.58148518,70199.0,70143.0,0.00554445]
[1770425781451,0.58312672,70189.0,70143.0,0.00554445]
[1770425783051,0.58312672,70189.0,70123.0,0.0002]
[1770425783554,0.06292,70208.0,70107.0,0.16978994]
[1770425783555,0.58333333,70149.0,70107.0,0.0002]
[1770425784245,0.58333333,70149.0,70095.0,0.0002]
[1770425785351,0.58333333,70149.0,70103.0,0.014275]
[1770425785556,0.58333333,70149.0,70095.0,0.0002]
[1770425786350,0.58333333,70149.0,70108.0,0.014274]
[1770425787449,0.58333333,70149.0,70111.0,0.014274]
[1770425787759,0.58333333,70149.0,70107.0,0.014275]
[1770425788654,0.58333333,70149.0,70114.0,0.014273]
[1770425788951,0.58333333,70149.0,70106.0,0.014275]
[1770425789144,0.58333333,70149.0,70112.0,0.014273]
[1770425789845,0.58333333,70149.0,70115.0,0.014273]
[1770425790054,0.58333333,70149.0,70118.0,0.014272]
[1770425790250,0.10188791,70109.0,70101.0,0.00478444]
[1770425790452,0.58173851,70139.0,70101.0,0.00478444]
[1770425790853,0.58173851,70139.0,70108.0,0.0128369]
[1770425791952,0.58173851,70139.0,70101.0,0.0128369]
[1770425793446,0.58173851,70139.0,70092.0,0.07171736]
[1770425794258,0.56784102,70119.0,70083.0,0.07151736]